Workbook

Sheet Voorblad
C5: Project:
C6: 18107 Kosten en aantallen logopedie 2011 tot en met 2017
C8: Bestand:
C9: 18107 Kosten en aantallen logopedie
C11: Structuur (beschrijving werkbladen):
C12: • Voorblad
C13: • Tabel 1: Aantal patiënten per jaar
C14: • Tabel 2: Verhouding van het aantal patiënten per leeftijdscategorie
C15: • Tabel 3: Aantal patiënten per postcodegebied in 2015, 2016 en 2017
C16: • Tabel 4: Gemiddelde kosten per patiënt per leeftijdscategorie
C17: • Tabel 5: Aantal declaraties per prestatiecodes binnen diagnosecode 3 'Taalstoornis' per leeftijdscategorie in 2015, 2016 en 2017
C18: • Tabel 6: Aantal behandelingen per jaar
C19: • Tabel 7: Kosten, het aantal declaraties en het aantal unieke patiënten per prestatiecode
C21: Achtergrond:
C22: De Nederlandse Vereniging voor Logopedie en Foniatrie (NVLF) is de beroepsvereniging van en voor logopedisten. De vereniging behartigt de collectieve en individuele belangen van de leden werkzaam in loondienst in het onderwijs en de gezondheidszorg en van leden die zich als zelfstandig logopedist hebben gevestigd. De NVLF stelt zich daarnaast ten doel het vakgebied logopedie en de kwaliteit van het logopedisch handelen voortdurend te verbeteren. De kerntaken van de NVLF zijn belangenbehartiging en kwaliteit. In het kader van deze kerntaken heeft het NVLF vorig jaar aan Vektis gevraagd om enkele kerngetallen over het logopediegebruik in Nederland te leveren. Het NVLF vraagt nu een update van deze gegevens en heeft een nieuwe vraag die ze graag beantwoord zien om de markt nog beter in beeld te krijgen.
C23: Toelichting:
C24: In de oplevering in 2017 is er ten onrechte geen rekening gehouden met debet/credit verrekening. In deze levering hebben we hier wel rekening mee gehouden. Hierdoor is het aantal patiënten en het aantal declaraties iets lager dan in de oplevering in 2017.
C26: Vektis geeft in de rapportage inzicht in het aantal mensen met logopedie per postcodegebied en het aantal personen per prestatie naar leeftijdscategorie. Vektis hanteert daarbij een minimale celgrootte van 10 personen. Wanneer er minder dan 10 personen zijn met logopedie per postcodegebied of wanneer er minder dan 10 personen zijn in een leeftijdscategorie met een prestatiecode, dan wordt niet het werkelijke aantal mensen getoond, maar wordt aangegeven dat het om minder dan 10 personen gaat. Vektis hanteert deze regel in al haar producten. De reden daarvoor is dat Vektis ten alle tijde wil voorkomen dat de gegevens herleidbaar zijn naar individuele personen.
C28: Tabel 3: Personen kunnen door verhuizing in meerdere postcodegebieden voor komen. Bij de beantwoording van deze vraag is van de declaratiegegevens gebruik gemaakt, waarin de postcode van de patiënt is meegenomen die bekend was op het moment dat de prestatie plaats heeft gevonden (prestatiedatum).
C30: Tabel 4 en 7: De kosten die zijn weergegeven, zijn de kosten die door de zorgverzekeraar zijn vergoed aan de patiënt.
C33: Brondata:
C34: • Dataset: De data is afkomstig uit het paramedisch-informatiesysteem van Vektis.
C35: • Gebruikte kwartalen en dekkingspercentages:
C36: Jaar Type verzekering Dekking Kwartalen
C37: 2017 BV 95,1% 5
C38: 2016 BV 100% 9
C39: 2015 BV 100% 12
C40: 2014 BV 100% 12
C41: 2013 BV 100% 12
C42: 2012 BV 100% 12
C43: 2011 BV 100% 12
C45: Auteur(s):
C46: Chantal van Tilburg, Talitha Oorsprong
C48: Wijzigingbeheer:
C49: • Aangemaakt: 3 augustus 2018
C50: • Wijziging: 14 september 2018. Tabel 7 toegevoegd.
C52: © Copyright 2018 Vektis - Sparrenheuvel 18 - 3708 JE Zeist - KvK 30230118

Sheet Tabel 1
B6: Jaar | C6: Aantal patiënten
B7: 2011 | C7: 221060
B8: 2012 | C8: 227433
B9: 2013 | C9: 225293
B10: 2014 | C10: 222904
B11: 2015 | C11: 230005
B12: 2016 | C12: 242557
B13: 2017 | C13: 251767

Sheet Tabel 2
B5: Leeftijdscategorie | C5: 2011 | E5: 2012 | G5: 2013 | I5: 2014 | K5: 2015 | M5: 2016 | O5: 2017
B6: Leeftijdscategorie | C6: Aantal patiënten | D6: Verhouding | E6: Aantal patiënten | F6: Verhouding | G6: Aantal patiënten | H6: Verhouding | I6: Aantal patiënten | J6: Verhouding | K6: Aantal patiënten | L6: Verhouding | M6: Aantal patiënten | N6: Verhouding | O6: Aantal patiënten | P6: Verhouding
B7: 0-4 jaar | C7: 50479 | D7: 0.2283497693 | E7: 53620 | F7: 0.2357617408 | G7: 56226 | H7: 0.2495683399 | I7: 58721 | J7: 0.2634362775 | K7: 62184 | L7: 0.27035934 | M7: 66439 | N7: 0.2739108746 | O7: 69815 | P7: 0.2773000433
B8: 5-9 jaar | C8: 93667 | D8: 0.4237175427 | E8: 95429 | F8: 0.4195917039 | G8: 93648 | H8: 0.415672036 | I8: 90388 | J8: 0.4055019201 | K8: 92070 | L8: 0.4002956457 | M8: 96897 | N8: 0.399481359 | O8: 100384 | P8: 0.3987178622
B9: 10-14 jaar | C9: 26740 | D9: 0.1209626346 | E9: 28549 | F9: 0.1255270783 | G9: 29009 | H9: 0.1287612132 | I9: 27290 | J9: 0.1224293866 | K9: 26957 | L9: 0.1172018 | M9: 27677 | N9: 0.1141051382 | O9: 28375 | P9: 0.1127034123
B10: 15-19 jaar | C10: 5972 | D10: 0.02701528997 | E10: 5959 | F10: 0.02620112297 | G10: 5565 | H10: 0.02470116692 | I10: 5399 | J10: 0.02422118939 | K10: 5540 | L10: 0.0240864329 | M10: 5991 | N10: 0.02469934902 | O10: 6170 | P10: 0.02450678604
B11: 20-24 jaar | C11: 4035 | D11: 0.018252963 | E11: 3830 | F11: 0.01684012434 | G11: 3260 | H11: 0.01447004567 | I11: 2974 | J11: 0.01334206654 | K11: 3070 | L11: 0.01334753592 | M11: 3055 | N11: 0.01259497768 | O11: 2999 | P11: 0.01191180735
B12: 25-29 jaar | C12: 3165 | D12: 0.0143173799 | E12: 3050 | F12: 0.01341054289 | G12: 2675 | H12: 0.01187342705 | I12: 2359 | J12: 0.01058303126 | K12: 2405 | L12: 0.01045629443 | M12: 2479 | N12: 0.01022027812 | O12: 2514 | P12: 0.00998542303
B13: 30-34 jaar | C13: 2754 | D13: 0.01245815616 | E13: 2554 | F13: 0.01122968083 | G13: 2128 | H13: 0.009445477667 | I13: 1960 | J13: 0.008793023005 | K13: 1979 | L13: 0.008604160779 | M13: 2119 | N13: 0.008736090898 | O13: 2063 | P13: 0.008194084213
B14: 35-39 jaar | C14: 2957 | D14: 0.01337645888 | E14: 2777 | F14: 0.01221018937 | G14: 2248 | H14: 0.009978117385 | I14: 2083 | J14: 0.009344830061 | K14: 2058 | L14: 0.008947631573 | M14: 2070 | N14: 0.008534076526 | O14: 2117 | P14: 0.00840856824
B15: 40-44 jaar | C15: 3272 | D15: 0.01480141138 | E15: 3071 | F15: 0.01350287777 | G15: 2669 | H15: 0.01184679506 | I15: 2528 | J15: 0.01134120518 | K15: 2384 | L15: 0.01036499207 | M15: 2238 | N15: 0.00922669723 | O15: 2310 | P15: 0.00917515004
B16: 45-49 jaar | C16: 3355 | D16: 0.01517687506 | E16: 3206 | F16: 0.01409645918 | G16: 2853 | H16: 0.0126635093 | I16: 2725 | J16: 0.01222499372 | K16: 2846 | L16: 0.01237364405 | M16: 2900 | N16: 0.01195595262 | O16: 2857 | P16: 0.01134779379
B17: 50-54 jaar | C17: 3434 | D17: 0.0155342441 | E17: 3298 | F17: 0.01450097391 | G17: 3066 | H17: 0.0136089448 | I17: 2947 | J17: 0.01322093816 | K17: 3094 | L17: 0.01345188148 | M17: 3159 | N17: 0.01302374287 | O17: 3315 | P17: 0.0131669361
B18: 55-59 jaar | C18: 3307 | D18: 0.01495973944 | E18: 3335 | F18: 0.01466365919 | G18: 3198 | H18: 0.01419484849 | I18: 3084 | J18: 0.01383555252 | K18: 3301 | L18: 0.01435186192 | M18: 3430 | N18: 0.01414100603 | O18: 3689 | P18: 0.01465243658
B19: 60-64 jaar | C19: 3551 | D19: 0.01606351217 | E19: 3478 | F19: 0.01529241579 | G19: 3196 | H19: 0.01418597116 | I19: 3370 | J19: 0.01511861609 | K19: 3580 | L19: 0.01556487902 | M19: 3796 | N19: 0.01564992971 | O19: 3791 | P19: 0.01505757307
B20: 65-69 jaar | C20: 3296 | D20: 0.01490997919 | E20: 3660 | F20: 0.01609265146 | G20: 3715 | H20: 0.01648963794 | I20: 3981 | J20: 0.01785970642 | K20: 4187 | L20: 0.01820395209 | M20: 4413 | N20: 0.0181936617 | O20: 4442 | P20: 0.01764329718
B21: 70-74 jaar | C21: 3107 | D21: 0.01405500769 | E21: 3357 | F21: 0.01476039097 | G21: 3448 | H21: 0.01530451457 | I21: 3670 | J21: 0.01646448695 | K21: 3991 | L21: 0.0173517967 | M21: 4435 | N21: 0.01828436203 | O21: 4903 | P21: 0.01947435526
B22: 75-79 jaar | C22: 3110 | D22: 0.01406857867 | E22: 3143 | F22: 0.01381945452 | G22: 3311 | H22: 0.01469641755 | I22: 3500 | J22: 0.0157018268 | K22: 3777 | L22: 0.01642138214 | M22: 4198 | N22: 0.01730727211 | O22: 4510 | P22: 0.01791338817
B23: 80-84 jaar | C23: 2608 | D23: 0.01179770198 | E23: 2686 | F23: 0.01181007154 | G23: 2638 | H23: 0.01170919647 | I23: 3002 | J23: 0.01346768115 | K23: 3233 | L23: 0.01405621617 | M23: 3536 | N23: 0.01457801671 | O23: 3609 | P23: 0.01433468246
B24: 85-89 jaar | C24: 1551 | D24: 0.007016194698 | E24: 1684 | F24: 0.007404378432 | G24: 1606 | H24: 0.007128494893 | I24: 1860 | J24: 0.008344399383 | K24: 2172 | L24: 0.009443272972 | M24: 2398 | N24: 0.009886335995 | O24: 2475 | P24: 0.009830517899
B25: 90 jaar en ouder | C25: 700 | D25: 0.003166561115 | E25: 747 | F25: 0.003284483782 | G25: 834 | H25: 0.00370184604 | I25: 1063 | J25: 0.00476886911 | K25: 1177 | L25: 0.005117280059 | M25: 1327 | N25: 0.00547087901 | O25: 1429 | P25: 0.00567588286
B26: Totaal | C26: =SUM(C7:C25) -> 221060 | D26: =SUM(D7:D25) -> 1 | E26: =SUM(E7:E25) -> 227433 | F26: =SUM(F7:F25) -> 1 | G26: 225293 | H26: =SUM(H7:H25) -> 1 | I26: 222904 | J26: =SUM(J7:J25) -> 1 | K26: 230005 | L26: =SUM(L7:L25) -> 1 | M26: 242557 | N26: =SUM(N7:N25) -> 1 | O26: 251767 | P26: =SUM(P7:P25) -> 1

Sheet Tabel 3
B7: Postcode4 | C7: Aantal patiënten 2015 | D7: Aantal patiënten 2016 | E7: Aantal patiënten 2017
B8: 0000 | C8: 637 | D8: 623 | E8: 599
B9: 1011 | C9: 67 | D9: 69 | E9: 61
B10: 1012 | C10: 47 | D10: 55 | E10: 53
B11: 1013 | C11: 206 | D11: 223 | E11: 232
B12: 1014 | C12: Minder dan 10 patiënten | D12: Minder dan 10 patiënten | E12: Minder dan 10 patiënten
B13: 1015 | C13: 120 | D13: 126 | E13: 118
B14: 1016 | C14: 67 | D14: 87 | E14: 76
B15: 1017 | C15: 75 | D15: 92 | E15: 82
B16: 1018 | C16: 193 | D16: 195 | E16: 213
B17: 1019 | C17: 268 | D17: 249 | E17: 242
B18: 1021 | C18: 103 | D18: 97 | E18: 92
B19: 1022 | C19: 32 | D19: 40 | E19: 41
B20: 1023 | C20: 34 | D20: 38 | E20: 27
B21: 1024 | C21: 250 | D21: 284 | E21: 327
B22: 1025 | C22: 195 | D22: 235 | E22: 229
B23: 1026 | C23: Minder dan 10 patiënten | D23: Minder dan 10 patiënten | E23: Minder dan 10 patiënten
B24: 1027 | C24: Minder dan 10 patiënten | D24: Minder dan 10 patiënten | E24: Minder dan 10 patiënten
B25: 1028 | C25: Minder dan 10 patiënten | D25: Minder dan 10 patiënten | E25: Minder dan 10 patiënten
B26: 1031 | C26: 96 | D26: 88 | E26: 99
B27: 1032 | C27: 59 | D27: 70 | E27: 73
B28: 1033 | C28: 142 | D28: 154 | E28: 139
B29: 1034 | C29: 233 | D29: 235 | E29: 252
B30: 1035 | C30: 157 | D30: 156 | E30: 166
B31: 1036 | C31: 29 | D31: 37 | E31: 39
B32: 1037 | C32: Minder dan 10 patiënten | D32: Minder dan 10 patiënten | E32: Minder dan 10 patiënten
B33: 1042 | C33: Minder dan 10 patiënten
B34: 1045 | C34: Minder dan 10 patiënten
B35: 1051 | C35: 153 | D35: 137 | E35: 122
B36: 1052 | C36: 133 | D36: 128 | E36: 110
B37: 1053 | C37: 142 | D37: 180 | E37: 170
B38: 1054 | C38: 149 | D38: 131 | E38: 124
B39: 1055 | C39: 276 | D39: 301 | E39: 314
B40: 1056 | C40: 218 | D40: 245 | E40: 231
B41: 1057 | C41: 221 | D41: 218 | E41: 232
B42: 1058 | C42: 136 | D42: 143 | E42: 137
B43: 1059 | C43: 71 | D43: 68 | E43: 60
B44: 1060 | C44: 116 | D44: 141 | E44: 130
B45: 1061 | C45: 280 | D45: 261 | E45: 276
B46: 1062 | C46: 112 | D46: 127 | E46: 144
B47: 1063 | C47: 232 | D47: 280 | E47: 282
B48: 1064 | C48: 293 | D48: 318 | E48: 304
B49: 1065 | C49: 184 | D49: 221 | E49: 225
B50: 1066 | C50: 200 | D50: 219 | E50: 252
B51: 1067 | C51: 368 | D51: 376 | E51: 413
B52: 1068 | C52: 249 | D52: 276 | E52: 321
B53: 1069 | C53: 536 | D53: 578 | E53: 545
B54: 1071 | C54: 123 | D54: 116 | E54: 127
B55: 1072 | C55: 108 | D55: 110 | E55: 96
B56: 1073 | C56: 116 | D56: 129 | E56: 141
B57: 1074 | C57: 90 | D57: 79 | E57: 86
B58: 1075 | C58: 123 | D58: 122 | E58: 103
B59: 1076 | C59: 94 | D59: 118 | E59: 103
B60: 1077 | C60: 99 | D60: 93 | E60: 100
B61: 1078 | C61: 134 | D61: 138 | E61: 132
B62: 1079 | C62: 121 | D62: 126 | E62: 139
B63: 1081 | C63: 48 | D63: 59 | E63: 56
B64: 1082 | C64: 102 | D64: 117 | E64: 125
B65: 1083 | C65: 62 | D65: 78 | E65: 84
B66: 1086 | C66: 95 | D66: 68 | E66: 67
B67: 1087 | C67: 364 | D67: 341 | E67: 378
B68: 1091 | C68: 178 | D68: 200 | E68: 223
B69: 1092 | C69: 106 | D69: 129 | E69: 114
B70: 1093 | C70: 101 | D70: 100 | E70: 127
B71: 1094 | C71: 174 | D71: 170 | E71: 169
B72: 1095 | C72: 181 | D72: 199 | E72: 190
B73: 1096 | C73: 11 | D73: 24 | E73: 24
B74: 1097 | C74: 148 | D74: 143 | E74: 167
B75: 1098 | C75: 170 | D75: 168 | E75: 151
B76: 1100 | C76: 40 | D76: 60 | E76: 82
B77: 1101 | D77: Minder dan 10 patiënten
B78: 1102 | C78: 496 | D78: 535 | E78: 513
B79: 1103 | C79: 233 | D79: 238 | E79: 224
B80: 1104 | C80: 210 | D80: 243 | E80: 262
B81: 1105 | E81: Minder dan 10 patiënten
B82: 1106 | C82: 265 | D82: 289 | E82: 309
B83: 1107 | C83: 136 | D83: 148 | E83: 161
B84: 1108 | C84: 31 | D84: 30 | E84: 34
B85: 1109 | C85: 13 | D85: 14 | E85: 11
B86: 1111 | C86: 121 | D86: 151 | E86: 155
B87: 1112 | C87: 94 | D87: 121 | E87: 129
B88: 1113 | C88: 34 | D88: 34 | E88: 43
B89: 1115 | C89: 58 | D89: 61 | E89: 59
B90: 1121 | C90: 91 | D90: 106 | E90: 95
B91: 1127 | C91: 10 | D91: Minder dan 10 patiënten | E91: Minder dan 10 patiënten
B92: 1131 | C92: 73 | D92: 63 | E92: 99
B93: 1132 | C93: 124 | D93: 122 | E93: 137
B94: 1135 | C94: 36 | D94: 43 | E94: 45
B95: 1141 | C95: 91 | D95: 82 | E95: 95
B96: 1145 | C96: Minder dan 10 patiënten | D96: Minder dan 10 patiënten | E96: Minder dan 10 patiënten
B97: 1151 | C97: 26 | D97: 21 | E97: 32
B98: 1153 | C98: Minder dan 10 patiënten | D98: Minder dan 10 patiënten | E98: Minder dan 10 patiënten
B99: 1154 | E99: Minder dan 10 patiënten
B100: 1156 | C100: 18 | D100: 13 | E100: Minder dan 10 patiënten
B101: 1161 | C101: 103 | D101: 111 | E101: 101
B102: 1165 | C102: 32 | D102: 32 | E102: 43
B103: 1171 | C103: 125 | D103: 151 | E103: 153
B104: 1175 | C104: Minder dan 10 patiënten | D104: Minder dan 10 patiënten | E104: 11
B105: 1181 | C105: 231 | D105: 244 | E105: 259
B106: 1182 | C106: 29 | D106: 27 | E106: 33
B107: 1183 | C107: 107 | D107: 114 | E107: 123
B108: 1184 | C108: 12 | D108: Minder dan 10 patiënten | E108: Minder dan 10 patiënten
B109: 1185 | C109: 118 | D109: 134 | E109: 118
B110: 1186 | C110: 112 | D110: 152 | E110: 182
B111: 1187 | C111: 247 | D111: 231 | E111: 241
B112: 1188 | C112: 68 | D112: 82 | E112: 80
B113: 1189 | C113: Minder dan 10 patiënten | D113: Minder dan 10 patiënten | E113: Minder dan 10 patiënten
B114: 1191 | C114: 105 | D114: 94 | E114: 89
B115: 1200 | C115: Minder dan 10 patiënten | D115: Minder dan 10 patiënten | E115: Minder dan 10 patiënten
B116: 1211 | C116: 112 | D116: 132 | E116: 130
B117: 1212 | C117: 49 | D117: 57 | E117: 72
B118: 1213 | C118: 73 | D118: 77 | E118: 79
B119: 1214 | C119: 92 | D119: 80 | E119: 82
B120: 1215 | C120: 131 | D120: 144 | E120: 126
B121: 1216 | C121: 100 | D121: 97 | E121: 108
B122: 1217 | C122: 86 | D122: 82 | E122: 74
B123: 1218 | C123: 54 | D123: 53 | E123: 55
B124: 1221 | C124: 125 | D124: 131 | E124: 134
B125: 1222 | C125: 164 | D125: 186 | E125: 222
B126: 1223 | C126: 143 | D126: 159 | E126: 167
B127: 1231 | C127: 90 | D127: 110 | E127: 93
B128: 1241 | C128: 67 | D128: 84 | E128: 109
B129: 1243 | C129: 17 | D129: 16 | E129: 18
B130: 1244 | C130: 11 | D130: 11 | E130: 14
B131: 1251 | C131: 118 | D131: 148 | E131: 150
B132: 1252 | C132: Minder dan 10 patiënten | D132: Minder dan 10 patiënten | E132: Minder dan 10 patiënten
B133: 1261 | C133: 100 | D133: 118 | E133: 174
B134: 1262 | E134: Minder dan 10 patiënten
B135: 1271 | C135: 93 | D135: 88 | E135: 97
B136: 1272 | C136: 70 | D136: 70 | E136: 84
B137: 1273 | C137: 92 | D137: 98 | E137: 127
B138: 1274 | C138: 80 | D138: 96 | E138: 104
B139: 1275 | C139: 35 | D139: 27 | E139: 24
B140: 1276 | C140: 98 | D140: 115 | E140: 105
B141: 1277 | C141: 32 | D141: 28 | E141: 24
B142: 1300 | C142: Minder dan 10 patiënten | D142: Minder dan 10 patiënten | E142: Minder dan 10 patiënten
B143: 1301 | C143: Minder dan 10 patiënten | D143: Minder dan 10 patiënten
B144: 1311 | C144: 72 | D144: 74 | E144: 69
B145: 1312 | C145: 106 | D145: 114 | E145: 120
B146: 1313 | C146: 70 | D146: 66 | E146: 58
B147: 1314 | C147: 132 | D147: 140 | E147: 152
B148: 1315 | C148: 61 | D148: 65 | E148: 63
B149: 1316 | C149: 70 | D149: 69 | E149: 63
B150: 1317 | C150: 102 | D150: 110 | E150: 97
B151: 1318 | C151: 102 | D151: 122 | E151: 156
B152: 1319 | C152: 98 | D152: 101 | E152: 116
B153: 1321 | C153: 132 | D153: 136 | E153: 164
B154: 1323 | C154: 86 | D154: 92 | E154: 81
B155: 1324 | C155: 204 | D155: 245 | E155: 234
B156: 1325 | C156: 185 | D156: 205 | E156: 182
B157: 1326 | C157: 209 | D157: 201 | E157: 208
B158: 1328 | C158: 158 | D158: 184 | E158: 156
B159: 1331 | C159: Minder dan 10 patiënten | D159: Minder dan 10 patiënten | E159: Minder dan 10 patiënten
B160: 1332 | E160: Minder dan 10 patiënten
B161: 1333 | C161: 215 | D161: 226 | E161: 241
B162: 1334 | C162: 29 | D162: 40 | E162: 45
B163: 1335 | C163: 204 | D163: 230 | E163: 233
B164: 1336 | C164: 164 | D164: 180 | E164: 205
B165: 1338 | C165: 152 | D165: 151 | E165: 159
B166: 1339 | C166: 188 | D166: 205 | E166: 221
B167: 1341 | C167: Minder dan 10 patiënten | D167: Minder dan 10 patiënten | E167: 20
B168: 1343 | C168: Minder dan 10 patiënten | D168: Minder dan 10 patiënten | E168: Minder dan 10 patiënten
B169: 1349 | D169: Minder dan 10 patiënten | E169: Minder dan 10 patiënten
B170: 1351 | C170: 12 | D170: 25 | E170: 21
B171: 1352 | C171: 10 | D171: 13 | E171: 14
B172: 1353 | C172: 74 | D172: 73 | E172: 97
B173: 1354 | C173: 47 | D173: 51 | E173: 54
B174: 1355 | C174: 43 | D174: 48 | E174: 44
B175: 1356 | C175: 34 | D175: 46 | E175: 49
B176: 1357 | C176: 50 | D176: 62 | E176: 59
B177: 1358 | C177: Minder dan 10 patiënten | D177: Minder dan 10 patiënten | E177: Minder dan 10 patiënten
B178: 1359 | C178: 15 | D178: 23 | E178: 29
B179: 1361 | C179: Minder dan 10 patiënten | D179: Minder dan 10 patiënten | E179: Minder dan 10 patiënten
B180: 1363 | C180: 185 | D180: 220 | E180: 263
B181: 1381 | C181: 61 | D181: 70 | E181: 55
B182: 1382 | C182: 149 | D182: 152 | E182: 139
B183: 1383 | C183: 33 | D183: 44 | E183: 40
B184: 1384 | D184: Minder dan 10 patiënten | E184: Minder dan 10 patiënten
B185: 1391 | C185: 73 | D185: 89 | E185: 103
B186: 1393 | C186: 13 | D186: 16 | E186: 14
B187: 1394 | C187: 51 | D187: 73 | E187: 78
B188: 1396 | C188: 13 | D188: 14 | E188: 15
B189: 1398 | C189: 32 | D189: 31 | E189: 18
B190: 1399 | C190: 28 | D190: 20 | E190: 16
B191: 1401 | C191: 68 | D191: 75 | E191: 74
B192: 1402 | C192: 110 | D192: 108 | E192: 125
B193: 1403 | C193: 104 | D193: 128 | E193: 128
B194: 1404 | C194: 30 | D194: 35 | E194: 39
B195: 1405 | C195: 31 | D195: 28 | E195: 37
B196: 1406 | C196: 39 | D196: 40 | E196: 30
B197: 1411 | C197: 93 | D197: 96 | E197: 117
B198: 1412 | C198: 91 | D198: 96 | E198: 123
B199: 1421 | C199: 73 | D199: 84 | E199: 71
B200: 1422 | C200: 148 | D200: 141 | E200: 154
B201: 1423 | C201: 61 | D201: 59 | E201: 51
B202: 1424 | C202: 29 | D202: 33 | E202: 37
B203: 1426 | C203: Minder dan 10 patiënten | D203: Minder dan 10 patiënten | E203: Minder dan 10 patiënten
B204: 1427 | C204: Minder dan 10 patiënten | D204: Minder dan 10 patiënten | E204: Minder dan 10 patiënten
B205: 1431 | C205: 129 | D205: 124 | E205: 106
B206: 1432 | C206: 138 | D206: 143 | E206: 124
... 3828 more rows

Sheet Tabel 4
B6: Leeftijdscategorie | C6: 2011 | E6: 2012 | G6: 2013 | I6: 2014 | K6: 2015 | M6: 2016 | O6: 2017
B7: Leeftijdscategorie | C7: Totale kosten | D7: Gemiddelde kosten per patiënt | E7: Totale kosten | F7: Gemiddelde kosten per patiënt | G7: Totale kosten | H7: Gemiddelde kosten per patiënt | I7: Totale kosten | J7: Gemiddelde kosten per patiënt | K7: Totale kosten | L7: Gemiddelde kosten per patiënt | M7: Totale kosten | N7: Gemiddelde kosten per patiënt | O7: Totale kosten | P7: Gemiddelde kosten per patiënt
B8: 0-4 jaar | C8: 25309653.13 | D8: 501.3897488 | E8: 28273866.86 | F8: 527.300762 | G8: 29483359.22 | H8: 524.3723406 | I8: 31523858.74 | J8: 536.841313 | K8: 33188712.84 | L8: 533.7178831 | M8: 37466145.07 | N8: 563.9179559 | O8: 39460197.07 | P8: 565.2108726
B9: 5-9 jaar | C9: 51014675.93 | D9: 544.6387301 | E9: 55270600.8 | F9: 579.1803414 | G9: 54030622.63 | H9: 576.9543677 | I9: 52760386.61 | J9: 583.7100789 | K9: 53448837.13 | L9: 580.523918 | M9: 58454783.29 | N9: 603.2672146 | O9: 60864673.74 | P9: 606.3184745
B10: 10-14 jaar | C10: 12283282.36 | D10: 459.3598489 | E10: 13953605.08 | F10: 488.7598543 | G10: 14024442.69 | H10: 483.4514354 | I10: 13131192.87 | J10: 481.1723294 | K10: 12750032.39 | L10: 472.976681 | M10: 13588195.71 | N10: 490.9562348 | O10: 13717035.19 | P10: 483.4197424
B11: 15-19 jaar | C11: 1863145.82 | D11: 311.980211 | E11: 1975943.14 | F11: 331.5897198 | G11: 1912134 | H11: 343.6 | I11: 1862672.3 | J11: 345.0032043 | K11: 1889044.4 | L11: 340.9827437 | M11: 2114690.02 | N11: 352.9778034 | O11: 2165065.45 | P11: 350.9020178
B12: 20-24 jaar | C12: 1252387.79 | D12: 310.3811128 | E12: 1274194.36 | F12: 332.6878225 | G12: 1024279.61 | H12: 314.1961994 | I12: 984663.01 | J12: 331.0904539 | K12: 981326.04 | L12: 319.6501759 | M12: 1022205.38 | N12: 334.6007791 | O12: 1002579.64 | P12: 334.3046482
B13: 25-29 jaar | C13: 992379.67 | D13: 313.548079 | E13: 1021878.8 | F13: 335.0422295 | G13: 813667.89 | H13: 304.1749121 | I13: 742245.55 | J13: 314.6441501 | K13: 756647.99 | L13: 314.6145489 | M13: 798398.56 | N13: 322.0647681 | O13: 781656.52 | P13: 310.9214479
B14: 30-34 jaar | C14: 876500.53 | D14: 318.2645352 | E14: 846839.62 | F14: 331.5738528 | G14: 650515.89 | H14: 305.6935573 | I14: 616972.25 | J14: 314.7817602 | K14: 618208.63 | L14: 312.3843507 | M14: 666517.52 | N14: 314.5434261 | O14: 618172.56 | P14: 299.6473873
B15: 35-39 jaar | C15: 949551.8 | D15: 321.1199865 | E15: 916353.8 | F15: 329.9797623 | G15: 716602.95 | H15: 318.7735543 | I15: 631032.92 | J15: 302.9442727 | K15: 630298.43 | L15: 306.2674587 | M15: 649292.59 | N15: 313.6679179 | O15: 642033.25 | P15: 303.2750354
B16: 40-44 jaar | C16: 1061523.25 | D16: 324.4264211 | E16: 1024346.6 | F16: 333.5547379 | G16: 855449.27 | H16: 320.5130274 | I16: 793578.09 | J16: 313.9153837 | K16: 701827.77 | L16: 294.3908431 | M16: 717349.44 | N16: 320.5314745 | O16: 735782.55 | P16: 318.5205844
B17: 45-49 jaar | C17: 1116301.12 | D17: 332.7276066 | E17: 1088387.12 | F17: 339.4844417 | G17: 926807.8 | H17: 324.853768 | I17: 868136.02 | J17: 318.5820257 | K17: 909253.61 | L17: 319.484754 | M17: 989444.72 | N17: 341.1878345 | O17: 915824.57 | P17: 320.5546272
B18: 50-54 jaar | C18: 1121413.64 | D18: 326.561922 | E18: 1140395.91 | F18: 345.7840843 | G18: 1026305.14 | H18: 334.7374886 | I18: 984163.15 | J18: 333.9542416 | K18: 963076.09 | L18: 311.2721687 | M18: 1104028.83 | N18: 349.4868091 | O18: 1117281.77 | P18: 337.0382413
B19: 55-59 jaar | C19: 1149076.5 | D19: 347.4679468 | E19: 1192245.01 | F19: 357.4947556 | G19: 1132053.06 | H19: 353.9878236 | I19: 1094009.26 | J19: 354.7371141 | K19: 1130842.3 | L19: 342.575674 | M19: 1200033 | N19: 349.8638484 | O19: 1233695.76 | P19: 334.4255245
B20: 60-64 jaar | C20: 1262816.08 | D20: 355.622664 | E20: 1303707.52 | F20: 374.8440253 | G20: 1137777.7 | H20: 356.0005319 | I20: 1199288.42 | J20: 355.8719347 | K20: 1241695.06 | L20: 346.8421955 | M20: 1364739.39 | N20: 359.5203872 | O20: 1376558.27 | P20: 363.1121788
B21: 65-69 jaar | C21: 1293151.32 | D21: 392.3395995 | E21: 1412090.66 | F21: 385.8171202 | G21: 1440234.21 | H21: 387.6808102 | I21: 1497039.4 | J21: 376.0460688 | K21: 1533448.35 | L21: 366.2403511 | M21: 1604803.55 | N21: 363.6536483 | O21: 1624066.8 | P21: 365.6161189
B22: 70-74 jaar | C22: 1269070.34 | D22: 408.4552108 | E22: 1371327.92 | F22: 408.4980399 | G22: 1339347.18 | H22: 388.4417575 | I22: 1394701.88 | J22: 380.0277602 | K22: 1445781.52 | L22: 362.260466 | M22: 1657668.73 | N22: 373.7697249 | O22: 1900087.35 | P22: 387.5356618
B23: 75-79 jaar | C23: 1314673.34 | D23: 422.7245466 | E23: 1346509.66 | F23: 428.4154184 | G23: 1390050.02 | H23: 419.8278526 | I23: 1401804.97 | J23: 400.5157057 | K23: 1476899.13 | L23: 391.0243924 | M23: 1574622.9 | N23: 375.088828 | O23: 1724063.2 | P23: 382.2756541
B24: 80-84 jaar | C24: 1175995.1 | D24: 450.9183666 | E24: 1179330.91 | F24: 439.0658637 | G24: 1122771.73 | H24: 425.6147574 | I24: 1228861.37 | J24: 409.3475583 | K24: 1203014.06 | L24: 372.1045654 | M24: 1344369.72 | N24: 380.1950566 | O24: 1387287.45 | P24: 384.3966334
B25: 85-89 jaar | C25: 690814.07 | D25: 445.3991425 | E25: 692917.85 | F25: 411.4714074 | G25: 643264.6 | H25: 400.5383562 | I25: 643615.6 | J25: 346.0298925 | K25: 719702.24 | L25: 331.3546225 | M25: 829071.22 | N25: 345.7344537 | O25: 869019.94 | P25: 351.1191677
B26: 90 jaar en ouder | C26: 265014.36 | D26: 378.5919429 | E26: 266217.91 | F26: 356.3827443 | G26: 282411.96 | H26: 338.6234532 | I26: 316021.88 | J26: 297.2924553 | K26: 327092.69 | L26: 277.9037298 | M26: 363601.3 | N26: 274.0024868 | O26: 396272.99 | P26: 277.3079006
B27: Totaal | C27: =SUM(C8:C26) -> 106261426.1 | D27: =C27/'Tabel 1'!C7 -> 480.6904286 | E27: =SUM(E8:E26) -> 115550759.5 | F27: =E27/'Tabel 1'!C8 -> 508.0650544 | G27: 113952097.5 | H27: =G27/'Tabel 1'!C9 -> 505.7951093 | I27: 113674244.3 | J27: =I27/'Tabel 1'!C10 -> 509.9695128 | K27: 115915740.7 | L27: =K27/'Tabel 1'!C11 -> 503.9705253 | M27: 127509960.9 | N27: =M27/'Tabel 1'!C12 -> 525.6907075 | O27: 132531354.1 | P27: =O27/'Tabel 1'!C13 -> 526.4047872

Sheet Tabel 5
B6: Prestatiecode | C6: Prestatiecode omschrijving | D6: Leeftijdscategorie | E6: Aantal patiënten 2015 | F6: Aantal patiënten 2016 | G6: Aantal patiënten 2017
B7: 192971 | C7: 35-39 jaar | D7: 35-39 jaar | E7: Minder dan 10 patiënten
B8: 192971 | C8: 40-44 jaar | D8: 40-44 jaar | E8: Minder dan 10 patiënten
B9: 192971 | C9: 45-49 jaar | D9: 45-49 jaar | E9: Minder dan 10 patiënten
B10: 192971 | C10: 50-54 jaar | D10: 50-54 jaar | E10: 10
B11: 192971 | C11: 55-59 jaar | D11: 55-59 jaar | E11: Minder dan 10 patiënten
B12: 192971 | C12: 60-64 jaar | D12: 60-64 jaar | E12: 15
B13: 192971 | C13: 65-69 jaar | D13: 65-69 jaar | E13: 20
B14: 192971 | C14: Specifieke behandeling Afasie-patiënten (logopedie). | D14: 70-74 jaar | E14: 20 | F14: Minder dan 10 patiënten
B15: 192971 | C15: 75-79 jaar | D15: 75-79 jaar | E15: 31
B16: 192971 | C16: 80-84 jaar | D16: 80-84 jaar | E16: 36
B17: 192971 | C17: Specifieke behandeling Afasie-patiënten (logopedie). | D17: 85-89 jaar | E17: 23 | F17: Minder dan 10 patiënten
B18: 192971 | C18: 90 jaar en ouder | D18: 90 jaar en ouder | E18: 12
B19: 192972 | C19: 0-4 jaar | D19: 0-4 jaar | E19: Minder dan 10 patiënten
B20: 192976 | C20: 0-4 jaar | D20: 0-4 jaar | E20: Minder dan 10 patiënten
B21: 192976 | C21: 15-19 jaar | D21: 15-19 jaar | E21: Minder dan 10 patiënten
B22: 192976 | C22: 20-24 jaar | D22: 20-24 jaar | E22: Minder dan 10 patiënten
B23: 192976 | C23: Uittoeslag (logopedie). | D23: 35-39 jaar | E23: Minder dan 10 patiënten | F23: Minder dan 10 patiënten
B24: 192976 | C24: 40-44 jaar | D24: 40-44 jaar | E24: Minder dan 10 patiënten
B25: 192976 | C25: 45-49 jaar | D25: 45-49 jaar | E25: Minder dan 10 patiënten
B26: 192976 | C26: Uittoeslag (logopedie). | D26: 50-54 jaar | E26: Minder dan 10 patiënten | F26: Minder dan 10 patiënten
B27: 192976 | C27: 55-59 jaar | D27: 55-59 jaar | E27: 15
B28: 192976 | C28: 5-9 jaar | D28: 5-9 jaar | E28: Minder dan 10 patiënten
B29: 192976 | C29: 60-64 jaar | D29: 60-64 jaar | E29: 12
B30: 192976 | C30: Uittoeslag (logopedie). | D30: 65-69 jaar | E30: 28 | F30: Minder dan 10 patiënten
B31: 192976 | C31: Uittoeslag (logopedie). | D31: 70-74 jaar | E31: 34 | F31: Minder dan 10 patiënten
B32: 192976 | C32: Uittoeslag (logopedie). | D32: 75-79 jaar | E32: 54 | F32: Minder dan 10 patiënten
B33: 192976 | C33: Uittoeslag (logopedie). | D33: 80-84 jaar | E33: 56 | F33: Minder dan 10 patiënten
B34: 192976 | C34: Uittoeslag (logopedie). | D34: 85-89 jaar | E34: 44 | F34: Minder dan 10 patiënten
B35: 192976 | C35: 90 jaar en ouder | D35: 90 jaar en ouder | E35: 21
B36: 193021 | C36: Logopedie. | D36: 0-4 jaar | E36: 203 | F36: Minder dan 10 patiënten
B37: 193021 | C37: 10-14 jaar | D37: 10-14 jaar | E37: 20
B38: 193021 | C38: 15-19 jaar | D38: 15-19 jaar | E38: 14
B39: 193021 | C39: Logopedie. | D39: 20-24 jaar | E39: 12 | F39: Minder dan 10 patiënten
B40: 193021 | C40: 25-29 jaar | D40: 25-29 jaar | E40: Minder dan 10 patiënten
B41: 193021 | C41: 30-34 jaar | D41: 30-34 jaar | E41: Minder dan 10 patiënten
B42: 193021 | C42: Logopedie. | D42: 35-39 jaar | E42: Minder dan 10 patiënten | F42: Minder dan 10 patiënten
B43: 193021 | C43: 40-44 jaar | D43: 40-44 jaar | E43: Minder dan 10 patiënten
B44: 193021 | C44: 45-49 jaar | D44: 45-49 jaar | E44: 14
B45: 193021 | C45: Logopedie. | D45: 50-54 jaar | E45: 15 | F45: Minder dan 10 patiënten
B46: 193021 | C46: 55-59 jaar | D46: 55-59 jaar | E46: 19
B47: 193021 | C47: Logopedie. | D47: 5-9 jaar | E47: 135 | F47: Minder dan 10 patiënten
B48: 193021 | C48: Logopedie. | D48: 60-64 jaar | E48: 23 | G48: Minder dan 10 patiënten
B49: 193021 | C49: Logopedie. | D49: 65-69 jaar | E49: 42 | F49: Minder dan 10 patiënten
B50: 193021 | C50: Logopedie. | D50: 70-74 jaar | E50: 55 | F50: Minder dan 10 patiënten
B51: 193021 | C51: Logopedie. | D51: 75-79 jaar | E51: 55 | F51: Minder dan 10 patiënten
B52: 193021 | C52: Logopedie. | D52: 80-84 jaar | E52: 61 | F52: Minder dan 10 patiënten
B53: 193021 | C53: Logopedie. | D53: 85-89 jaar | E53: 42 | F53: Minder dan 10 patiënten
B54: 193021 | C54: Logopedie. | D54: 90 jaar en ouder | E54: 18 | F54: Minder dan 10 patiënten
B55: 193022 | C55: Eenmalig logopedisch onderzoek op medische indicatie | D55: 0-4 jaar | E55: Minder dan 10 patiënten | G55: Minder dan 10 patiënten
B56: 193022 | C56: 10-14 jaar | D56: 10-14 jaar | E56: Minder dan 10 patiënten
B57: 193022 | C57: 15-19 jaar | D57: 15-19 jaar | E57: Minder dan 10 patiënten
B58: 193022 | C58: 20-24 jaar | D58: 20-24 jaar | E58: Minder dan 10 patiënten
B59: 193022 | C59: 30-34 jaar | D59: 30-34 jaar | E59: Minder dan 10 patiënten
B60: 193022 | C60: Eenmalig logopedisch onderzoek op medische indicatie | D60: 35-39 jaar | F60: Minder dan 10 patiënten
B61: 193022 | C61: 5-9 jaar | D61: 5-9 jaar | E61: Minder dan 10 patiënten
B62: 193022 | C62: Eenmalig logopedisch onderzoek op medische indicatie | D62: 60-64 jaar | F62: Minder dan 10 patiënten
B63: 193022 | C63: 80-84 jaar | D63: 80-84 jaar | E63: Minder dan 10 patiënten
B64: 193022 | C64: Eenmalig logopedisch onderzoek op medische indicatie | D64: 90 jaar en ouder | F64: Minder dan 10 patiënten
B65: 193024 | C65: Preverbale logopedie | D65: 0-4 jaar | E65: Minder dan 10 patiënten | F65: Minder dan 10 patiënten
B66: 193024 | C66: 5-9 jaar | D66: 5-9 jaar | E66: Minder dan 10 patiënten
B67: 193090 | C67: 0-4 jaar | D67: 0-4 jaar | E67: Minder dan 10 patiënten
B68: 193090 | C68: Logopedische behandeling bij een groep van twee personen. | D68: 5-9 jaar | E68: Minder dan 10 patiënten | F68: Minder dan 10 patiënten
B69: 193090 | C69: 65-69 jaar | D69: 65-69 jaar | E69: Minder dan 10 patiënten
B70: 193090 | C70: 80-84 jaar | D70: 80-84 jaar | E70: Minder dan 10 patiënten
B71: 193090 | C71: 85-89 jaar | D71: 85-89 jaar | E71: Minder dan 10 patiënten
B72: 193091 | C72: 0-4 jaar | D72: 0-4 jaar | E72: Minder dan 10 patiënten
B73: 193091 | C73: 5-9 jaar | D73: 5-9 jaar | E73: Minder dan 10 patiënten
B74: 193091 | C74: 65-69 jaar | D74: 65-69 jaar | E74: Minder dan 10 patiënten
B75: 193091 | C75: 75-79 jaar | D75: 75-79 jaar | E75: Minder dan 10 patiënten
B76: 193091 | C76: 80-84 jaar | D76: 80-84 jaar | E76: Minder dan 10 patiënten
B77: 193092 | C77: 0-4 jaar | D77: 0-4 jaar | E77: Minder dan 10 patiënten
B78: 193092 | C78: 45-49 jaar | D78: 45-49 jaar | E78: Minder dan 10 patiënten
B79: 193092 | C79: 65-69 jaar | D79: 65-69 jaar | E79: Minder dan 10 patiënten
B80: 193092 | C80: 80-84 jaar | D80: 80-84 jaar | E80: Minder dan 10 patiënten
B81: 193092 | C81: Logopedische behandeling bij een groep van vier personen. | D81: 85-89 jaar | F81: Minder dan 10 patiënten
B82: 193093 | C82: 45-49 jaar | D82: 45-49 jaar | E82: Minder dan 10 patiënten
B83: 193093 | C83: 55-59 jaar | D83: 55-59 jaar | E83: Minder dan 10 patiënten
B84: 193093 | C84: 60-64 jaar | D84: 60-64 jaar | E84: Minder dan 10 patiënten
B85: 193093 | C85: 65-69 jaar | D85: 65-69 jaar | E85: Minder dan 10 patiënten
B86: 193093 | C86: Logopedische behandeling bij een groep van vijf tot tien personen. | D86: 70-74 jaar | E86: Minder dan 10 patiënten | F86: Minder dan 10 patiënten
B87: 193093 | C87: 80-84 jaar | D87: 80-84 jaar | E87: Minder dan 10 patiënten
B88: 193093 | C88: 85-89 jaar | D88: 85-89 jaar | E88: Minder dan 10 patiënten
B89: 4000 | C89: Individuele zitting reguliere logopedie | D89: 0-4 jaar | E89: 27440 | F89: 30619 | G89: 33037
B90: 4000 | C90: Individuele zitting reguliere logopedie | D90: 10-14 jaar | E90: 10869 | F90: 11298 | G90: 11584
B91: 4000 | C91: Individuele zitting reguliere logopedie | D91: 15-19 jaar | E91: 621 | F91: 568 | G91: 664
B92: 4000 | C92: Individuele zitting reguliere logopedie | D92: 20-24 jaar | E92: 90 | F92: 106 | G92: 108
B93: 4000 | C93: Individuele zitting reguliere logopedie | D93: 25-29 jaar | E93: 53 | F93: 46 | G93: 63
B94: 4000 | C94: Individuele zitting reguliere logopedie | D94: 30-34 jaar | E94: 50 | F94: 73 | G94: 61
B95: 4000 | C95: Individuele zitting reguliere logopedie | D95: 35-39 jaar | E95: 58 | F95: 50 | G95: 54
B96: 4000 | C96: Individuele zitting reguliere logopedie | D96: 40-44 jaar | E96: 79 | F96: 74 | G96: 57
B97: 4000 | C97: Individuele zitting reguliere logopedie | D97: 45-49 jaar | E97: 111 | F97: 125 | G97: 92
B98: 4000 | C98: Individuele zitting reguliere logopedie | D98: 50-54 jaar | E98: 144 | F98: 145 | G98: 153
B99: 4000 | C99: Individuele zitting reguliere logopedie | D99: 55-59 jaar | E99: 161 | F99: 184 | G99: 188
B100: 4000 | C100: Individuele zitting reguliere logopedie | D100: 5-9 jaar | E100: 44968 | F100: 48299 | G100: 50778
B101: 4000 | C101: Individuele zitting reguliere logopedie | D101: 60-64 jaar | E101: 243 | F101: 234 | G101: 229
B102: 4000 | C102: Individuele zitting reguliere logopedie | D102: 65-69 jaar | E102: 332 | F102: 337 | G102: 300
B103: 4000 | C103: Individuele zitting reguliere logopedie | D103: 70-74 jaar | E103: 383 | F103: 407 | G103: 387
B104: 4000 | C104: Individuele zitting reguliere logopedie | D104: 75-79 jaar | E104: 357 | F104: 352 | G104: 354
B105: 4000 | C105: Individuele zitting reguliere logopedie | D105: 80-84 jaar | E105: 246 | F105: 269 | G105: 254
B106: 4000 | C106: Individuele zitting reguliere logopedie | D106: 85-89 jaar | E106: 160 | F106: 180 | G106: 118
B107: 4000 | C107: Individuele zitting reguliere logopedie | D107: 90 jaar en ouder | E107: 42 | F107: 51 | G107: 53
B108: 4001 | C108: Individuele zitting reguliere logopedie met toeslag voor behandeling aan huis | D108: 0-4 jaar | E108: 721 | F108: 797 | G108: 908
B109: 4001 | C109: Individuele zitting reguliere logopedie met toeslag voor behandeling aan huis | D109: 10-14 jaar | E109: 128 | F109: 85 | G109: 85
B110: 4001 | C110: Individuele zitting reguliere logopedie met toeslag voor behandeling aan huis | D110: 15-19 jaar | E110: 34 | F110: 33 | G110: 34
B111: 4001 | C111: Individuele zitting reguliere logopedie met toeslag voor behandeling aan huis | D111: 20-24 jaar | E111: 13 | F111: 15 | G111: 16
B112: 4001 | C112: Individuele zitting reguliere logopedie met toeslag voor behandeling aan huis | D112: 25-29 jaar | E112: 10 | F112: Minder dan 10 patiënten | G112: 10
B113: 4001 | C113: Individuele zitting reguliere logopedie met toeslag voor behandeling aan huis | D113: 30-34 jaar | E113: Minder dan 10 patiënten | F113: 17 | G113: 12
B114: 4001 | C114: Individuele zitting reguliere logopedie met toeslag voor behandeling aan huis | D114: 35-39 jaar | E114: 12 | F114: 12 | G114: Minder dan 10 patiënten
B115: 4001 | C115: Individuele zitting reguliere logopedie met toeslag voor behandeling aan huis | D115: 40-44 jaar | E115: 23 | F115: 14 | G115: 19
B116: 4001 | C116: Individuele zitting reguliere logopedie met toeslag voor behandeling aan huis | D116: 45-49 jaar | E116: 31 | F116: 46 | G116: 41
B117: 4001 | C117: Individuele zitting reguliere logopedie met toeslag voor behandeling aan huis | D117: 50-54 jaar | E117: 58 | F117: 57 | G117: 54
B118: 4001 | C118: Individuele zitting reguliere logopedie met toeslag voor behandeling aan huis | D118: 55-59 jaar | E118: 88 | F118: 79 | G118: 89
B119: 4001 | C119: Individuele zitting reguliere logopedie met toeslag voor behandeling aan huis | D119: 5-9 jaar | E119: 365 | F119: 331 | G119: 358
B120: 4001 | C120: Individuele zitting reguliere logopedie met toeslag voor behandeling aan huis | D120: 60-64 jaar | E120: 108 | F120: 119 | G120: 96
B121: 4001 | C121: Individuele zitting reguliere logopedie met toeslag voor behandeling aan huis | D121: 65-69 jaar | E121: 146 | F121: 146 | G121: 188
B122: 4001 | C122: Individuele zitting reguliere logopedie met toeslag voor behandeling aan huis | D122: 70-74 jaar | E122: 200 | F122: 237 | G122: 281
B123: 4001 | C123: Individuele zitting reguliere logopedie met toeslag voor behandeling aan huis | D123: 75-79 jaar | E123: 216 | F123: 294 | G123: 294
B124: 4001 | C124: Individuele zitting reguliere logopedie met toeslag voor behandeling aan huis | D124: 80-84 jaar | E124: 275 | F124: 311 | G124: 322
B125: 4001 | C125: Individuele zitting reguliere logopedie met toeslag voor behandeling aan huis | D125: 85-89 jaar | E125: 174 | F125: 207 | G125: 229
B126: 4001 | C126: Individuele zitting reguliere logopedie met toeslag voor behandeling aan huis | D126: 90 jaar en ouder | E126: 88 | F126: 95 | G126: 124
B127: 4002 | C127: Individuele zitting reguliere telelogopedie | D127: 0-4 jaar | E127: 12 | F127: Minder dan 10 patiënten | G127: 26
B128: 4002 | C128: Individuele zitting reguliere telelogopedie | D128: 10-14 jaar | E128: Minder dan 10 patiënten | F128: Minder dan 10 patiënten | G128: Minder dan 10 patiënten
B129: 4002 | C129: Individuele zitting reguliere telelogopedie | D129: 50-54 jaar | F129: Minder dan 10 patiënten | G129: Minder dan 10 patiënten
B130: 4002 | C130: Individuele zitting reguliere telelogopedie | D130: 55-59 jaar | E130: Minder dan 10 patiënten | F130: Minder dan 10 patiënten | G130: Minder dan 10 patiënten
B131: 4002 | C131: Individuele zitting reguliere telelogopedie | D131: 5-9 jaar | E131: 24 | F131: 42 | G131: 53
B132: 4002 | C132: Individuele zitting reguliere telelogopedie | D132: 60-64 jaar | E132: Minder dan 10 patiënten | G132: Minder dan 10 patiënten
B133: 4002 | C133: Individuele zitting reguliere telelogopedie | D133: 65-69 jaar | E133: Minder dan 10 patiënten | F133: Minder dan 10 patiënten
B134: 4002 | C134: Individuele zitting reguliere telelogopedie | D134: 70-74 jaar | G134: Minder dan 10 patiënten
B135: 4002 | C135: 75-79 jaar | D135: 75-79 jaar | E135: Minder dan 10 patiënten
B136: 4002 | C136: Individuele zitting reguliere telelogopedie | D136: 80-84 jaar | G136: Minder dan 10 patiënten
B137: 4002 | C137: Individuele zitting reguliere telelogopedie | D137: 85-89 jaar | G137: Minder dan 10 patiënten
B138: 4003 | C138: Individuele zitting reguliere logopedie met toeslag voor behandeling in een instelling | D138: 0-4 jaar | F138: Minder dan 10 patiënten | G138: Minder dan 10 patiënten
B139: 4003 | C139: Individuele zitting reguliere logopedie met toeslag voor behandeling in een instelling | D139: 10-14 jaar | F139: Minder dan 10 patiënten | G139: Minder dan 10 patiënten
B140: 4003 | C140: Individuele zitting reguliere logopedie met toeslag voor behandeling in een instelling | D140: 15-19 jaar | F140: Minder dan 10 patiënten | G140: Minder dan 10 patiënten
B141: 4003 | C141: Individuele zitting reguliere logopedie met toeslag voor behandeling in een instelling | D141: 20-24 jaar | G141: Minder dan 10 patiënten
B142: 4003 | C142: Individuele zitting reguliere logopedie met toeslag voor behandeling in een instelling | D142: 25-29 jaar | G142: Minder dan 10 patiënten
B143: 4003 | C143: Individuele zitting reguliere logopedie met toeslag voor behandeling in een instelling | D143: 40-44 jaar | G143: Minder dan 10 patiënten
B144: 4003 | C144: Individuele zitting reguliere logopedie met toeslag voor behandeling in een instelling | D144: 5-9 jaar | F144: Minder dan 10 patiënten | G144: Minder dan 10 patiënten
B145: 4003 | C145: Individuele zitting reguliere logopedie met toeslag voor behandeling in een instelling | D145: 65-69 jaar | G145: Minder dan 10 patiënten
B146: 4003 | C146: Individuele zitting reguliere logopedie met toeslag voor behandeling in een instelling | D146: 70-74 jaar | F146: Minder dan 10 patiënten | G146: Minder dan 10 patiënten
B147: 4003 | C147: Individuele zitting reguliere logopedie met toeslag voor behandeling in een instelling | D147: 75-79 jaar | G147: Minder dan 10 patiënten
B148: 4003 | C148: Individuele zitting reguliere logopedie met toeslag voor behandeling in een instelling | D148: 80-84 jaar | F148: Minder dan 10 patiënten | G148: Minder dan 10 patiënten
B149: 4003 | C149: Individuele zitting reguliere logopedie met toeslag voor behandeling in een instelling | D149: 85-89 jaar | F149: Minder dan 10 patiënten | G149: Minder dan 10 patiënten
B150: 4003 | C150: Individuele zitting reguliere logopedie met toeslag voor behandeling in een instelling | D150: 90 jaar en ouder | F150: Minder dan 10 patiënten | G150: Minder dan 10 patiënten
B151: 4010 | C151: Telefonische zitting logopedie | D151: 0-4 jaar | E151: 28 | F151: 43 | G151: 57
B152: 4010 | C152: Telefonische zitting logopedie | D152: 10-14 jaar | E152: 36 | F152: 50 | G152: 48
B153: 4010 | C153: Telefonische zitting logopedie | D153: 15-19 jaar | E153: Minder dan 10 patiënten | F153: Minder dan 10 patiënten | G153: 10
B154: 4010 | C154: 20-24 jaar | D154: 20-24 jaar | E154: Minder dan 10 patiënten
B155: 4010 | C155: Telefonische zitting logopedie | D155: 25-29 jaar | F155: Minder dan 10 patiënten
B156: 4010 | C156: Telefonische zitting logopedie | D156: 40-44 jaar | G156: Minder dan 10 patiënten
B157: 4010 | C157: Telefonische zitting logopedie | D157: 45-49 jaar | E157: Minder dan 10 patiënten | F157: Minder dan 10 patiënten
B158: 4010 | C158: Telefonische zitting logopedie | D158: 50-54 jaar | F158: Minder dan 10 patiënten
B159: 4010 | C159: Telefonische zitting logopedie | D159: 55-59 jaar | E159: Minder dan 10 patiënten | F159: Minder dan 10 patiënten
B160: 4010 | C160: Telefonische zitting logopedie | D160: 5-9 jaar | E160: 55 | F160: 73 | G160: 69
B161: 4010 | C161: Telefonische zitting logopedie | D161: 60-64 jaar | E161: Minder dan 10 patiënten | G161: Minder dan 10 patiënten
B162: 4010 | C162: Telefonische zitting logopedie | D162: 65-69 jaar | E162: Minder dan 10 patiënten | F162: Minder dan 10 patiënten | G162: Minder dan 10 patiënten
B163: 4010 | C163: Telefonische zitting logopedie | D163: 70-74 jaar | E163: Minder dan 10 patiënten | F163: Minder dan 10 patiënten | G163: Minder dan 10 patiënten
B164: 4010 | C164: Telefonische zitting logopedie | D164: 75-79 jaar | E164: Minder dan 10 patiënten | F164: Minder dan 10 patiënten | G164: Minder dan 10 patiënten
B165: 4010 | C165: Telefonische zitting logopedie | D165: 80-84 jaar | E165: Minder dan 10 patiënten | F165: Minder dan 10 patiënten | G165: Minder dan 10 patiënten
B166: 4010 | C166: Telefonische zitting logopedie | D166: 85-89 jaar | E166: Minder dan 10 patiënten | F166: Minder dan 10 patiënten | G166: Minder dan 10 patiënten
B167: 4010 | C167: Telefonische zitting logopedie | D167: 90 jaar en ouder | E167: Minder dan 10 patiënten | F167: Minder dan 10 patiënten | G167: Minder dan 10 patiënten
B168: 4011 | C168: Instructie/overleg ouders/verzorgers van de patiënt bij logopedie | D168: 0-4 jaar | G168: 72
B169: 4011 | C169: Instructie/overleg ouders/verzorgers van de patiënt bij logopedie | D169: 10-14 jaar | G169: 23
B170: 4011 | C170: Instructie/overleg ouders/verzorgers van de patiënt bij logopedie | D170: 35-39 jaar | G170: Minder dan 10 patiënten
B171: 4011 | C171: Instructie/overleg ouders/verzorgers van de patiënt bij logopedie | D171: 50-54 jaar | G171: Minder dan 10 patiënten
B172: 4011 | C172: Instructie/overleg ouders/verzorgers van de patiënt bij logopedie | D172: 5-9 jaar | G172: 156
B173: 4011 | C173: Instructie/overleg ouders/verzorgers van de patiënt bij logopedie | D173: 60-64 jaar | G173: Minder dan 10 patiënten
B174: 4011 | C174: Instructie/overleg ouders/verzorgers van de patiënt bij logopedie | D174: 65-69 jaar | G174: Minder dan 10 patiënten
B175: 4011 | C175: Instructie/overleg ouders/verzorgers van de patiënt bij logopedie | D175: 70-74 jaar | G175: Minder dan 10 patiënten
B176: 4011 | C176: Instructie/overleg ouders/verzorgers van de patiënt bij logopedie | D176: 75-79 jaar | G176: Minder dan 10 patiënten
B177: 4011 | C177: Instructie/overleg ouders/verzorgers van de patiënt bij logopedie | D177: 80-84 jaar | G177: Minder dan 10 patiënten
B178: 4011 | C178: Instructie/overleg ouders/verzorgers van de patiënt bij logopedie | D178: 85-89 jaar | G178: Minder dan 10 patiënten
B179: 4050 | C179: Screening bij directe toegang logopedie | D179: 0-4 jaar | E179: 961 | F179: 281 | G179: 235
B180: 4050 | C180: Screening bij directe toegang logopedie | D180: 10-14 jaar | E180: 241 | F180: 62 | G180: 42
B181: 4050 | C181: Screening bij directe toegang logopedie | D181: 15-19 jaar | E181: 25 | F181: Minder dan 10 patiënten
B182: 4050 | C182: Screening bij directe toegang logopedie | D182: 20-24 jaar | E182: Minder dan 10 patiënten | F182: Minder dan 10 patiënten | G182: Minder dan 10 patiënten
B183: 4050 | C183: Screening bij directe toegang logopedie | D183: 25-29 jaar | F183: Minder dan 10 patiënten
B184: 4050 | C184: Screening bij directe toegang logopedie | D184: 30-34 jaar | G184: Minder dan 10 patiënten
B185: 4050 | C185: 35-39 jaar | D185: 35-39 jaar | E185: Minder dan 10 patiënten
B186: 4050 | C186: 40-44 jaar | D186: 40-44 jaar | E186: Minder dan 10 patiënten
B187: 4050 | C187: Screening bij directe toegang logopedie | D187: 45-49 jaar | E187: Minder dan 10 patiënten | F187: Minder dan 10 patiënten
B188: 4050 | C188: Screening bij directe toegang logopedie | D188: 50-54 jaar | E188: Minder dan 10 patiënten | F188: Minder dan 10 patiënten
B189: 4050 | C189: 55-59 jaar | D189: 55-59 jaar | E189: Minder dan 10 patiënten
B190: 4050 | C190: Screening bij directe toegang logopedie | D190: 5-9 jaar | E190: 1105 | F190: 330 | G190: 227
B191: 4050 | C191: 60-64 jaar | D191: 60-64 jaar | E191: Minder dan 10 patiënten
B192: 4050 | C192: Screening bij directe toegang logopedie | D192: 65-69 jaar | E192: Minder dan 10 patiënten | F192: Minder dan 10 patiënten | G192: Minder dan 10 patiënten
B193: 4050 | C193: Screening bij directe toegang logopedie | D193: 70-74 jaar | F193: Minder dan 10 patiënten
B194: 4050 | C194: Screening bij directe toegang logopedie | D194: 75-79 jaar | E194: Minder dan 10 patiënten | G194: Minder dan 10 patiënten
B195: 4050 | C195: Screening bij directe toegang logopedie | D195: 80-84 jaar | E195: Minder dan 10 patiënten | G195: Minder dan 10 patiënten
B196: 4050 | C196: 85-89 jaar | D196: 85-89 jaar | E196: Minder dan 10 patiënten
B197: 4050 | C197: Screening bij directe toegang logopedie | D197: 90 jaar en ouder | G197: Minder dan 10 patiënten
B198: 4051 | C198: Screening bij directe toegang logopedie met toeslag voor behandeling aan huis | D198: 55-59 jaar | F198: Minder dan 10 patiënten
B199: 4051 | C199: Screening bij directe toegang logopedie met toeslag voor behandeling aan huis | D199: 85-89 jaar | G199: Minder dan 10 patiënten
B200: 4054 | C200: Anamnese (intake) en onderzoek logopedie na screening | D200: 0-4 jaar | F200: 129 | G200: 103
B201: 4054 | C201: Anamnese (intake) en onderzoek logopedie na screening | D201: 10-14 jaar | F201: 28 | G201: 23
B202: 4054 | C202: Anamnese (intake) en onderzoek logopedie na screening | D202: 15-19 jaar | F202: Minder dan 10 patiënten | G202: Minder dan 10 patiënten
B203: 4054 | C203: Anamnese (intake) en onderzoek logopedie na screening | D203: 30-34 jaar | G203: Minder dan 10 patiënten
B204: 4054 | C204: Anamnese (intake) en onderzoek logopedie na screening | D204: 45-49 jaar | F204: Minder dan 10 patiënten
B205: 4054 | C205: Anamnese (intake) en onderzoek logopedie na screening | D205: 5-9 jaar | F205: 158 | G205: 120
... 273 more rows

Sheet Tabel 6
B6: Jaar | C6: Aantal declaraties
B7: 2011 | C7: 3625095
B8: 2012 | C8: 3812105
B9: 2013 | C9: 3727304
B10: 2014 | C10: 3603741
B11: 2015 | C11: 3625693
B12: 2016 | C12: 3869019
B13: 2017 | C13: 3983309

Sheet Tabel 7
B6: Prestatiecode | C6: Prestatiecode omschrijving | D6: 2011 | G6: 2012 | J6: 2013 | M6: 2014 | P6: 2015 | S6: 2016 | V6: 2017
B7: Prestatiecode | C7: Prestatiecode omschrijving | D7: Aantal declaraties | E7: Aantal patiënten | F7: Totale kosten | G7: Aantal declaraties | H7: Aantal patiënten | I7: Totale kosten | J7: Aantal declaraties | K7: Aantal patiënten | L7: Totale kosten | M7: Aantal declaraties | N7: Aantal patiënten | O7: Totale kosten | P7: Aantal declaraties | Q7: Aantal patiënten | R7: Totale kosten | S7: Aantal declaraties | T7: Aantal patiënten | U7: Totale kosten | V7: Aantal declaraties | W7: Aantal patiënten | X7: Totale kosten
B8: 192970 | C8: Specifieke behandeling stotteren (logopedie). | D8: Minder dan 10 declaraties | E8: Minder dan 10 patiënten | F8: 364.65 | G8: 50 | H8: Minder dan 10 patiënten | I8: 2912.06 | J8: 42 | K8: Minder dan 10 patiënten | L8: 2426.7 | M8: 17 | N8: Minder dan 10 patiënten | O8: 1013.37 | P8: Minder dan 10 declaraties | Q8: Minder dan 10 patiënten | R8: 122
B9: 192971 | C9: Specifieke behandeling Afasie-patiënten (logopedie). | D9: 2482 | E9: 161 | F9: 140216.56 | G9: 2452 | H9: 141 | I9: 147922.79 | J9: 2808 | K9: 159 | L9: 165563.06 | M9: 2738 | N9: 179 | O9: 163178.26 | P9: 2872 | Q9: 218 | R9: 172726.92 | S9: 33 | T9: 11 | U9: 2029.72
B10: 192972 | C10: Specifieke behandeling cf. Hanen-ouderprogramma (logopedie). | D10: 31 | E10: Minder dan 10 patiënten | F10: 50029.15 | J10: Minder dan 10 declaraties | K10: Minder dan 10 patiënten | L10: 1651.34 | P10: Minder dan 10 declaraties | Q10: Minder dan 10 patiënten | R10: 1666.75
B11: 192973 | C11: Dagdeeltarief IZS per patiënt (logopedie). | G11: Minder dan 10 declaraties | H11: Minder dan 10 patiënten | I11: 55.62
B12: 192976 | C12: Uittoeslag (logopedie). | D12: 6275 | E12: 819 | F12: 105139.26 | G12: 7599 | H12: 878 | I12: 128930.09 | J12: 9504 | K12: 1114 | L12: 152845.86 | M12: 8504 | N12: 1190 | O12: 144108.9 | P12: 8791 | Q12: 1219 | R12: 147059.85 | S12: 406 | T12: 70 | U12: 5733.07 | V12: Minder dan 10 declaraties | W12: Minder dan 10 patiënten | X12: 10.4
B13: 192979 | C13: Anamnese en onderzoek na verwijzing (logopedie). | V13: Minder dan 10 declaraties | W13: Minder dan 10 patiënten | X13: 84.46
B14: 193021 | C14: Logopedie | D14: 26381 | E14: 2559 | F14: 740510.12 | G14: 32853 | H14: 3334 | I14: 953932.75 | J14: 39358 | K14: 3656 | L14: 1147821.51 | M14: 31961 | N14: 3609 | O14: 959340.96 | P14: 28137 | Q14: 3325 | R14: 840338.07 | S14: 822 | T14: 195 | U14: 26288.4 | V14: 60 | W14: 22 | X14: 2037.77
B15: 193022 | C15: Eenmalig logopedisch onderzoek op medische indicatie | D15: 407 | E15: 367 | F15: 19122.76 | G15: 848 | H15: 615 | I15: 54200.69 | J15: 557 | K15: 485 | L15: 33888.01 | M15: 331 | N15: 455 | O15: 18865.57 | P15: 390 | Q15: 379 | R15: 30100.3 | S15: 40 | T15: 49 | U15: 2989.73 | V15: Minder dan 10 declaraties | W15: Minder dan 10 patiënten | X15: 105.42
B16: 193023 | C16: Logopedische behandeling bij een groep | D16: 749 | E16: 61 | F16: 10400.48 | G16: 108 | H16: 18 | I16: 1183.68 | M16: Minder dan 10 declaraties | N16: Minder dan 10 patiënten | O16: 76.06
B17: 193024 | C17: Preverbale logopedie | D17: 190 | E17: 33 | F17: 10657.04 | G17: 346 | H17: 53 | I17: 20450.17 | J17: 314 | K17: 38 | L17: 18857.36 | M17: 242 | N17: 41 | O17: 16027.44 | P17: 44 | Q17: Minder dan 10 patiënten | R17: 2330.79 | S17: Minder dan 10 declaraties | T17: Minder dan 10 patiënten | U17: 195.9
B18: 193085 | C18: Telefonische zitting (logopedie). | G18: 24 | H18: 14 | I18: 347.94 | J18: 35 | K18: 23 | L18: 536.43 | M18: 54 | N18: 37 | O18: 907.54 | P18: Minder dan 10 declaraties | Q18: Minder dan 10 patiënten | R18: 45
B19: 193090 | C19: Logopedische behandeling bij een groep van twee personen. | D19: 69 | E19: Minder dan 10 patiënten | F19: 2902.83 | G19: 27 | H19: Minder dan 10 patiënten | I19: 1183.41 | J19: 56 | K19: Minder dan 10 patiënten | L19: 2455.95 | M19: 745 | N19: 114 | O19: 33258.3 | P19: 156 | Q19: 40 | R19: 4739.14 | S19: 20 | T19: Minder dan 10 patiënten | U19: 608
B20: 193091 | C20: Logopedische behandeling bij een groep van drie personen. | D20: 215 | E20: 22 | F20: 6030.75 | G20: 30 | H20: Minder dan 10 patiënten | I20: 876.6 | J20: 84 | K20: 18 | L20: 2461.8 | M20: 432 | N20: 86 | O20: 12835.93 | P20: 130 | Q20: 41 | R20: 3040.28 | S20: Minder dan 10 declaraties | T20: Minder dan 10 patiënten | U20: 136.7
B21: 193092 | C21: Logopedische behandeling bij een groep van vier personen. | D21: 112 | E21: 19 | F21: 2356.48 | G21: 172 | H21: 16 | I21: 3763.32 | J21: 74 | K21: 19 | L21: 1557.52 | M21: 318 | N21: 53 | O21: 7717.44 | P21: 161 | Q21: 24 | R21: 3334.86 | S21: Minder dan 10 declaraties | T21: Minder dan 10 patiënten | U21: 16.43
B22: 193093 | C22: Logopedische behandeling bij een groep van vijf tot tien personen. | D22: 118 | E22: 18 | F22: 1504.94 | G22: 421 | H22: 26 | I22: 5245.85 | J22: 371 | K22: 29 | L22: 4679.06 | M22: 622 | N22: 36 | O22: 7960.49 | P22: 110 | Q22: 18 | R22: 2020.31 | S22: Minder dan 10 declaraties | T22: Minder dan 10 patiënten | U22: 31.72
B23: 4000 | C23: Individuele zitting reguliere logopedie | D23: 3386220 | E23: 205260 | F23: 94770450.96 | G23: 3561734 | H23: 211285 | I23: 103738969.8 | J23: 3480460 | K23: 208768 | L23: 102415022.7 | M23: 3359829 | N23: 206125 | O23: 101802711.6 | P23: 3392528 | Q23: 213086 | R23: 104508502.1 | S23: 3560868 | T23: 222317 | U23: 110853005.3 | V23: 3628303 | W23: 229507 | X23: 113518819
B24: 4001 | C24: Individuele zitting reguliere logopedie met toeslag voor behandeling aan huis | D24: 114954 | E24: 8523 | F24: 5136479.35 | G24: 108574 | H24: 8330 | I24: 4819828.42 | J24: 98673 | K24: 8032 | L24: 4400258.44 | M24: 100723 | N24: 8755 | O24: 4597766.86 | P24: 100659 | Q24: 9346 | R24: 4669562.86 | S24: 110128 | T24: 10736 | U24: 5132607.85 | V24: 114449 | W24: 11779 | X24: 5163850.54
B25: 4002 | C25: Individuele zitting reguliere telelogopedie | D25: 4817 | E25: 511 | F25: 80704.61 | G25: 5956 | H25: 689 | I25: 107100.54 | J25: 5708 | K25: 786 | L25: 106572.64 | M25: 6898 | N25: 907 | O25: 134638.83 | P25: 908 | Q25: 274 | R25: 26472.84 | S25: 1685 | T25: 204 | U25: 48991.51 | V25: 3672 | W25: 343 | X25: 102545.92
B26: 4003 | C26: Individuele zitting reguliere logopedie met toeslag voor behandeling in een instelling | S26: 513 | T26: 79 | U26: 20347.29 | V26: 2459 | W26: 313 | X26: 97414.04
B27: 4010 | C27: Telefonische zitting logopedie | D27: 608 | E27: 478 | F27: 8538.15 | G27: 593 | H27: 445 | I27: 8588.54 | J27: 393 | K27: 280 | L27: 5635.03 | M27: 410 | N27: 315 | O27: 5588.33 | P27: 641 | Q27: 466 | R27: 8292.8 | S27: 823 | T27: 633 | U27: 10723.58 | V27: 964 | W27: 722 | X27: 12886.97
B28: 4011 | C28: Instructie/overleg ouders/verzorgers van de patiënt bij logopedie | V28: 662 | W28: 420 | X28: 20783.32
B29: 4050 | C29: Screening bij directe toegang logopedie | D29: 251 | E29: 249 | F29: 3519.02 | G29: 5245 | H29: 5056 | I29: 68823.92 | J29: 5880 | K29: 5512 | L29: 76912.43 | M29: 6379 | N29: 5865 | O29: 78939.78 | P29: 7779 | Q29: 6903 | R29: 95603.23 | S29: 2219 | T29: 2067 | U29: 30528.17 | V29: 1653 | W29: 1493 | X29: 20085.55
B30: 4051 | C30: Screening bij directe toegang logopedie met toeslag voor behandeling aan huis | S30: Minder dan 10 declaraties | T30: Minder dan 10 patiënten | U30: 33.4 | V30: Minder dan 10 declaraties | W30: Minder dan 10 patiënten | X30: 56.6
B31: 4054 | C31: Anamnese (intake) en onderzoek logopedie na screening | S31: 1011 | T31: 861 | U31: 53571.53 | V31: 1000 | W31: 680 | X31: 51137.31
B32: 4055 | C32: Anamnese (intake) en onderzoek logopedie na screening met toeslag voor behandeling aan huis | S32: Minder dan 10 declaraties | T32: Minder dan 10 patiënten | U32: 156.8 | V32: Minder dan 10 declaraties | W32: Minder dan 10 patiënten | X32: 377.17
B33: 4057 | C33: Screening, anamnese (intake) en onderzoek logopedie | S33: 6857 | T33: 6255 | U33: 399975.37 | V33: 9179 | W33: 8272 | X33: 535499.65
B34: 4058 | C34: Screening, anamnese (intake) en onderzoek logopedie met toeslag voor behandeling aan huis | S34: Minder dan 10 declaraties | T34: Minder dan 10 patiënten | U34: 375.6 | V34: 16 | W34: 17 | X34: 1407.69
B35: 4059 | C35: Screening, anamnese (intake) en onderzoek logopedie met toeslag voor behandeling in een instelling | V35: Minder dan 10 declaraties | W35: Minder dan 10 patiënten | X35: 171.29
B36: 4061 | C36: Anamnese (intake) en onderzoek logopedie na verwijzing | S36: 84823 | T36: 71901 | U36: 4297044.55 | V36: 107806 | W36: 94387 | X36: 5495933.81
B37: 4062 | C37: Anamnese (intake) en onderzoek logopedie na verwijzing met toeslag voor behandeling aan huis | S37: 3116 | T37: 2973 | U37: 212958.83 | V37: 4601 | W37: 4392 | X37: 306104.1
B38: 4063 | C38: Anamnese (intake) en onderzoek logopedie na verwijzing met toeslag voor behandeling in een instelling | S38: 66 | T38: 66 | U38: 4251.12 | V38: 231 | W38: 217 | X38: 14484.52
B39: 4100 | C39: Eenmalig specifiek logopedisch onderzoek (op medische indicatie) zonder dat behandeling volgt (vervallen) | D39: Minder dan 10 declaraties | E39: Minder dan 10 patiënten | F39: 56.1 | G39: Minder dan 10 declaraties | H39: Minder dan 10 patiënten | I39: 58.44 | J39: 19 | K39: Minder dan 10 patiënten | L39: 1224.48
B40: 4102 | C40: Eenmalig logopedisch onderzoek | D40: 8349 | E40: 7670 | F40: 466484.43 | G40: 7197 | H40: 6464 | I40: 413752.08 | J40: 6878 | K40: 6234 | L40: 404294.26 | M40: 6206 | N40: 5767 | O40: 375325.13 | P40: 6560 | Q40: 5993 | R40: 402556.25 | S40: 3939 | T40: 3730 | U40: 242973.64 | V40: 1973 | W40: 1874 | X40: 119432.57
B41: 4103 | C41: Eenmalig logopedisch onderzoek met toeslag voor behandeling aan huis | D41: 579 | E41: 476 | F41: 41892.6 | G41: 510 | H41: 461 | I41: 37762.98 | J41: 461 | K41: 426 | L41: 33585.37 | M41: 429 | N41: 408 | O41: 32242.31 | P41: 311 | Q41: 299 | R41: 23694.37 | S41: 352 | T41: 332 | U41: 26487.79 | V41: 197 | W41: 196 | X41: 14737.91
B42: 4104 | C42: Eenmalig logopedisch onderzoek met toeslag voor behandeling in een instelling | S42: Minder dan 10 declaraties | T42: Minder dan 10 patiënten | U42: 693.57 | V42: 14 | W42: 14 | X42: 981.65
B43: 4200 | C43: Groepsbehandeling logopedie | D43: 109 | E43: 20 | F43: 1910.98 | G43: Minder dan 10 declaraties | H43: Minder dan 10 patiënten | I43: 14.57 | J43: Minder dan 10 declaraties | K43: Minder dan 10 patiënten | L43: 112.5
B44: 4201 | C44: Groepsbehandeling integrale Zorg Stotteren (IZS), per dagdeel | D44: 157 | E44: 20 | F44: 15358.89 | G44: 365 | H44: 36 | I44: 34224.05 | J44: 86 | K44: 13 | L44: 8335.61 | M44: 232 | N44: 32 | O44: 20442.67 | P44: 96 | Q44: 29 | R44: 8348 | S44: 208 | T44: 26 | U44: 19647.02
B45: 4210 | C45: Groepsbehandeling voor specifieke behandeling van twee personen | D45: 423 | E45: 35 | F45: 31775.23 | G45: 474 | H45: 50 | I45: 18989.41 | J45: 611 | K45: 80 | L45: 23562.94 | M45: 819 | N45: 105 | O45: 32081.97 | P45: 878 | Q45: 110 | R45: 34890.11
B46: 4211 | C46: Groepsbehandeling voor specifieke behandeling van drie personen | D46: 273 | E46: 49 | F46: 7167.77 | G46: 342 | H46: 60 | I46: 9564.7 | J46: 459 | K46: 92 | L46: 12661.9 | M46: 763 | N46: 132 | O46: 21865.42 | P46: 937 | Q46: 148 | R46: 26596.46
B47: 4212 | C47: Groepsbehandeling voor specifieke behandeling van vier personen | D47: 273 | E47: 50 | F47: 4246.04 | G47: 686 | H47: 114 | I47: 14116.21 | J47: 560 | K47: 98 | L47: 11506.1 | M47: 653 | N47: 106 | O47: 13996.41 | P47: 1800 | Q47: 181 | R47: 40268.92
B48: 4213 | C48: Groepsbehandeling voor specifieke behandeling van vijf tot tien personen | D48: 1007 | E48: 139 | F48: 13708.73 | G48: 1087 | H48: 132 | I48: 13364.98 | J48: 1018 | K48: 130 | L48: 12670.65 | M48: 1104 | N48: 128 | O48: 14207.92 | P48: 740 | Q48: 96 | R48: 9504.51
B49: 4214 | C49: Groepszitting voor behandeling logopedie van twee personen | S49: 1057 | T49: 226 | U49: 39199.07 | V49: 1273 | W49: 229 | X49: 43357.49
B50: 4215 | C50: Groepszitting voor behandeling logopedie van drie personen | S50: 1842 | T50: 354 | U50: 49330.58 | V50: 3391 | W50: 491 | X50: 86834.42
B51: 4216 | C51: Groepszitting voor behandeling logopedie van vier personen | S51: 1728 | T51: 252 | U51: 35941.7 | V51: 1923 | W51: 342 | X51: 41080.4
B52: 4217 | C52: Groepszitting voor behandeling logopedie van vijf tot tien personen | S52: 814 | T52: 132 | U52: 10559.68 | V52: 1938 | W52: 180 | X52: 27283.62
B53: 4301 | C53: Individuele zitting logopedie stotteren | D53: 31006 | E53: 3594 | F53: 1734937.99 | G53: 33078 | H53: 3748 | I53: 1923515.2 | J53: 32831 | K53: 3647 | L53: 1920788.89 | M53: 32473 | N53: 3599 | O53: 1969122.24 | P53: 33769 | Q53: 3737 | R53: 2078014.16 | S53: 37049 | T53: 4042 | U53: 2309817.75 | V53: 39479 | W53: 4448 | X53: 2464575.49
B54: 4302 | C54: Individuele zitting logopedie stotteren met toeslag voor behandeling aan huis | D54: 32 | E54: 11 | F54: 2312.99 | G54: 71 | H54: 29 | I54: 5273.71 | J54: 193 | K54: 33 | L54: 14778.18 | M54: 169 | N54: 34 | O54: 13224.61 | P54: 106 | Q54: 23 | R54: 8291.29 | S54: 128 | T54: 25 | U54: 9860.72 | V54: 162 | W54: 27 | X54: 12356.74
B55: 4303 | C55: Individuele zitting preverbale logopedie | D55: 5653 | E55: 1044 | F55: 316413.57 | G55: 6104 | H55: 1105 | I55: 355380.67 | J55: 5456 | K55: 1162 | L55: 319041.97 | M55: 4912 | N55: 1184 | O55: 298649.07 | P55: 4222 | Q55: 1160 | R55: 259900.27 | S55: 4907 | T55: 1340 | U55: 305541.47 | V55: 6302 | W55: 1711 | X55: 392691
B56: 4304 | C56: Individuele zitting preverbale logopedie met toeslag voor behandeling aan huis | D56: 20907 | E56: 3245 | F56: 1523635.7 | G56: 21056 | H56: 3253 | I56: 1563485.99 | J56: 20930 | K56: 3381 | L56: 1566842 | M56: 20724 | N56: 3544 | O56: 1585411.91 | P56: 16968 | Q56: 3166 | R56: 1320588.3 | S56: 20853 | T56: 3900 | U56: 1641782.12 | V56: 24386 | W56: 4647 | X56: 1871190.81
B57: 4305 | C57: Individuele zitting logopedie afasie | D57: 5873 | E57: 365 | F57: 329031.59 | G57: 6342 | H57: 369 | I57: 365662.12 | J57: 5744 | K57: 334 | L57: 334277.86 | M57: 7398 | N57: 461 | O57: 445307.07 | P57: 8635 | Q57: 582 | R57: 527371.54 | S57: 12009 | T57: 820 | U57: 738261.76 | V57: 12690 | W57: 899 | X57: 778865.77
B58: 4306 | C58: Individuele zitting logopedie afasie met toeslag voor behandeling aan huis | D58: 6411 | E58: 277 | F58: 463969.23 | G58: 7612 | H58: 306 | I58: 568091 | J58: 7627 | K58: 308 | L58: 570433.4 | M58: 7506 | N58: 354 | O58: 575398.28 | P58: 7236 | Q58: 482 | R58: 556720.71 | S58: 10192 | T58: 704 | U58: 790738.45 | V58: 13970 | W58: 1001 | X58: 1056350.96
B59: 4307 | C59: Specifieke behandeling volgens het Hanen-ouderprogramma PDMT (Praten Doe je Met z'n Tweeën) | D59: 156 | E59: 157 | F59: 250307.99 | G59: 145 | H59: 152 | I59: 242494.16 | J59: 110 | K59: 103 | L59: 184482.03 | M59: 148 | N59: 150 | O59: 252336.26 | P59: 123 | Q59: 129 | R59: 234488.12 | S59: 131 | T59: 131 | U59: 229704.78 | V59: 188 | W59: 188 | X59: 334306.22
B60: 4309 | C60: Individuele zitting telelogopedie stotteren | S60: 50 | T60: 15 | U60: 2996.48 | V60: 43 | W60: 16 | X60: 2494.55
B61: 4310 | C61: Individuele zitting preverbale logopedie met toeslag voor behandeling in een instelling | S61: 60 | T61: Minder dan 10 patiënten | U61: 4439.5 | V61: 18 | W61: Minder dan 10 patiënten | X61: 1424.3
B62: 4311 | C62: Individuele zitting logopedie afasie met toeslag voor behandeling in een instelling | S62: 209 | T62: 20 | U62: 13459.5 | V62: 281 | W62: 21 | X62: 19522.34
B63: 4312 | C63: Individuele zitting telelogopedie afasie | S63: 31 | T63: Minder dan 10 patiënten | U63: 1924 | V63: 11 | W63: Minder dan 10 patiënten | X63: 728.45
B64: 4313 | C64: Overleg logopedie met derden | S64: Minder dan 10 declaraties | T64: Minder dan 10 patiënten | U64: 78.79
B65: 4314 | C65: Verslaglegging logopedie aan derden | V65: Minder dan 10 declaraties | W65: Minder dan 10 patiënten | X65: 86.82
